[Event "Chess Stars Match"]
[Site "Teatro Capri, Paterna, Spain"]
[Date "2019.12.15"]
[Round "8.1"]
[White "Semenova, Elena"]
[Black "Howell, David W L"]
[Result "0-1"]
[TimeControl "7m+3s"]
[WhiteTitle "WIM"]
[BlackTitle "GM"]
[WhiteFideId "24125148"]
[BlackFideId "410608"]
[WhiteElo "2290"]
[BlackElo "2676"]

1. e4 {[%clk 00:04:05]} c6 {[%clk 00:03:01]} {[%emt 00:00:05]} 2. d4 {[%clk
00:04:07]} {[%emt 00:00:01]} d5 {[%clk 00:03:03]} {[%emt 00:00:01]} 3. Nd2
{[%clk 00:04:09]} dxe4 {[%clk 00:03:04]} {[%emt 00:00:03]} 4. Nxe4 {[%clk
00:04:10]} Nf6 {[%clk 00:03:06]} 5. Nxf6+ {[%clk 00:04:10]} {[%emt 00:00:04]}
exf6 {[%clk 00:03:07]} {[%emt 00:00:01]} 6. g3 {[%clk 00:03:31]} {[%emt
00:00:42]} h5 {[%clk 00:02:23]} {[%emt 00:00:47]} 7. h4 {[%clk 00:03:11]}
{[%emt 00:00:23]} Bg4 {[%clk 00:01:31]} {[%emt 00:00:55]} 8. Qd3 {[%clk
00:02:59]} {[%emt 00:00:14]} Qd5 {[%clk 00:01:21]} {[%emt 00:00:14]} 9. Rh2
{[%clk 00:02:15]} {[%emt 00:00:47]} Na6 {[%clk 00:01:01]} {[%emt 00:00:22]} 10.
a3 {[%clk 00:01:54]} {[%emt 00:00:25]} O-O-O {[%clk 00:00:58]} {[%emt
00:00:05]} 11. Be3 {[%clk 00:01:55]} {[%emt 00:00:02]} Bd6 {[%clk 00:00:33]}
{[%emt 00:00:28]} 12. Ne2 {[%clk 00:01:47]} {[%emt 00:00:11]} Rhe8 {[%clk
00:00:32]} {[%emt 00:00:04]} 13. Nc3 {[%clk 00:01:36]} {[%emt 00:00:14]} Qf3
{[%clk 00:00:15]} {[%emt 00:00:20]} 14. Be2 {[%clk 00:01:11]} {[%emt 00:00:28]}
Rxe3 {[%clk 00:00:16]} {[%emt 00:00:02]} 15. fxe3 {[%clk 00:00:37]} {[%emt
00:00:37]} Qxg3+ {[%clk 00:00:15]} {[%emt 00:00:04]} 16. Rf2 {[%clk 00:00:39]}
Qxh4 {[%clk 00:00:09]} {[%emt 00:00:09]} 17. Bxg4+ {[%clk 00:00:29]} {[%emt
00:00:13]} hxg4 {[%clk 00:00:11]} 18. Qf5+ {[%clk 00:00:29]} {[%emt 00:00:04]}
Kb8 {[%clk 00:00:13]} 19. O-O-O {[%clk 00:00:28]} {[%emt 00:00:04]} Nc7 {[%clk
00:00:11]} {[%emt 00:00:04]} 20. Rff1 {[%clk 00:00:26]} {[%emt 00:00:05]} Re8
{[%clk 00:00:09]} {[%emt 00:00:06]} 21. Ne4 {[%clk 00:00:19]} {[%emt 00:00:09]}
g6 {[%clk 00:00:04]} {[%emt 00:00:09]} 22. Qxf6 {[%clk 00:00:12]} {[%emt
00:00:10]} Qxf6 {[%clk 00:00:05]} {[%emt 00:00:02]} 23. Nxf6 {[%clk 00:00:13]}
{[%emt 00:00:02]} Rxe3 {[%clk 00:00:06]} {[%emt 00:00:01]} 24. Nxg4 {[%clk
00:00:13]} {[%emt 00:00:03]} Re7 {[%clk 00:00:08]} 25. Nf6 {[%clk 00:00:11]}
{[%emt 00:00:05]} Ne6 {[%clk 00:00:08]} {[%emt 00:00:04]} 26. c3 {[%clk
00:00:10]} {[%emt 00:00:04]} b5 {[%clk 00:00:06]} {[%emt 00:00:05]} 27. Kc2
{[%clk 00:00:11]} {[%emt 00:00:02]} Kb7 {[%clk 00:00:08]} 28. Rde1 {[%clk
00:00:12]} {[%emt 00:00:02]} Bg3 {[%clk 00:00:08]} {[%emt 00:00:03]} 29. Re2
{[%clk 00:00:10]} {[%emt 00:00:05]} Nxd4+ {[%clk 00:00:09]} {[%emt 00:00:02]}
30. cxd4 {[%clk 00:00:08]} {[%emt 00:00:05]} Rxe2+ {[%clk 00:00:11]} 31. Kd3
{[%clk 00:00:08]} {[%emt 00:00:03]} Rxb2 {[%clk 00:00:12]} {[%emt 00:00:02]} 32.
Ne4 {[%clk 00:00:09]} {[%emt 00:00:02]} f5 {[%clk 00:00:07]} {[%emt 00:00:08]}
33. Nc5+ {[%clk 00:00:05]} {[%emt 00:00:07]} Kb6 {[%clk 00:00:08]} {[%emt
00:00:02]} 34. Rh1 {[%clk 00:00:05]} {[%emt 00:00:03]} Bd6 {[%clk 00:00:06]}
{[%emt 00:00:04]} 35. Nd7+ {[%clk 00:00:05]} {[%emt 00:00:03]} Ka5 {[%clk
00:00:08]} 36. Rc1 {[%clk 00:00:06]} {[%emt 00:00:01]} Rb3+ {[%clk 00:00:07]}
{[%emt 00:00:05]} 37. Ke2 {[%clk 00:00:08]} Bxa3 {[%clk 00:00:06]} {[%emt
00:00:04]} 38. Rxc6 {[%clk 00:00:10]} Rg3 {[%clk 00:00:07]} {[%emt 00:00:03]}
39. Kf2 {[%clk 00:00:07]} {[%emt 00:00:06]} f4 {[%clk 00:00:09]} {[%emt
00:00:01]} 40. d5 {[%clk 00:00:07]} {[%emt 00:00:03]} Rd3 {[%clk 00:00:08]}
{[%emt 00:00:03]} 0-1

[Event "Chess Stars Match"]
[Site "Teatro Capri, Paterna, Spain"]
[Date "2019.12.15"]
[Round "8.2"]
[White "Llobell Cortell, Enrique"]
[Black "Hamitevici, Vladimir"]
[Result "1/2-1/2"]
[TimeControl "7m+3s"]
[WhiteTitle "IM"]
[BlackTitle "GM"]
[WhiteFideId "2216116"]
[BlackFideId "13902393"]
[WhiteElo "2401"]
[BlackElo "2453"]

1. e4 {[%clk 00:04:03]} {[%emt 00:00:01]} d6 {[%clk 00:03:05]} {[%emt
00:00:02]} 2. Nc3 {[%clk 00:04:05]} {[%emt 00:00:01]} e5 {[%clk 00:03:00]}
{[%emt 00:00:08]} 3. Bc4 {[%clk 00:04:05]} {[%emt 00:00:02]} Nf6 {[%clk
00:02:51]} {[%emt 00:00:12]} 4. d3 {[%clk 00:04:05]} {[%emt 00:00:03]} c6
{[%clk 00:02:45]} {[%emt 00:00:09]} 5. a3 {[%clk 00:03:38]} {[%emt 00:00:30]}
Be7 {[%clk 00:02:27]} {[%emt 00:00:20]} 6. d4 {[%clk 00:02:20]} {[%emt
00:01:23]} O-O {[%clk 00:02:11]} {[%emt 00:00:19]} 7. Nge2 {[%clk 00:02:19]}
{[%emt 00:00:03]} b5 {[%clk 00:02:04]} {[%emt 00:00:11]} 8. Ba2 {[%clk
00:01:41]} {[%emt 00:00:43]} a5 {[%clk 00:02:08]} {[%emt 00:00:02]} 9. dxe5
{[%clk 00:01:18]} {[%emt 00:00:26]} dxe5 {[%clk 00:02:09]} {[%emt 00:00:01]} 10.
Qxd8 {[%clk 00:01:18]} {[%emt 00:00:03]} Rxd8 {[%clk 00:02:07]} {[%emt
00:00:05]} 11. Be3 {[%clk 00:00:29]} {[%emt 00:00:52]} Nbd7 {[%clk 00:02:06]}
{[%emt 00:00:03]} 12. f3 {[%clk 00:00:07]} {[%emt 00:00:26]} Ba6 {[%clk
00:02:04]} {[%emt 00:00:05]} 13. Nd1 {[%clk 00:00:07]} {[%emt 00:00:03]} b4
{[%clk 00:01:52]} {[%emt 00:00:14]} 14. axb4 {[%emt 00:00:06]} axb4 {[%clk
00:01:52]} {[%emt 00:00:02]} 15. Bb3 {[%clk 00:00:06]} {[%emt 00:00:03]} Nc5
{[%clk 00:01:40]} {[%emt 00:00:14]} 16. Bxc5 {[%clk 00:00:07]} {[%emt
00:00:03]} Bxc5 {[%clk 00:01:42]} {[%emt 00:00:01]} 17. Nf2 {[%clk 00:00:08]}
{[%emt 00:00:02]} Be3 {[%clk 00:01:31]} {[%emt 00:00:13]} 18. Nd1 {[%clk
00:00:07]} {[%emt 00:00:05]} Bb6 {[%clk 00:01:04]} {[%emt 00:00:29]} 19. Nf2
{[%clk 00:00:08]} {[%emt 00:00:02]} Bb5 {[%clk 00:00:54]} {[%emt 00:00:13]} 20.
Rxa8 {[%clk 00:00:04]} {[%emt 00:00:07]} Rxa8 {[%clk 00:00:55]} {[%emt
00:00:02]} 21. Nd1 {[%clk 00:00:05]} {[%emt 00:00:02]} Rd8 {[%clk 00:00:25]}
{[%emt 00:00:33]} 22. c4 {[%clk 00:00:07]} {[%emt 00:00:02]} bxc3 {[%clk
00:00:20]} {[%emt 00:00:08]} 23. Ndxc3 {[%clk 00:00:06]} {[%emt 00:00:04]} Bd3
{[%clk 00:00:18]} {[%emt 00:00:04]} 24. Ba4 {[%clk 00:00:07]} {[%emt 00:00:03]}
c5 {[%clk 00:00:12]} {[%emt 00:00:09]} 25. Bb3 {[%clk 00:00:08]} {[%emt
00:00:02]} c4 {[%clk 00:00:11]} {[%emt 00:00:04]} 26. Bd1 {[%clk 00:00:10]} Be3
{[%clk 00:00:09]} {[%emt 00:00:04]} 27. Nd5 {[%clk 00:00:08]} {[%emt 00:00:06]}
Nxd5 {[%clk 00:00:10]} {[%emt 00:00:02]} 28. exd5 {[%clk 00:00:09]} {[%emt
00:00:02]} Rxd5 {[%clk 00:00:11]} {[%emt 00:00:02]} 29. Nc3 {[%clk 00:00:11]}
Ra5 {[%clk 00:00:13]} {[%emt 00:00:02]} 30. Be2 {[%clk 00:00:12]} {[%emt
00:00:03]} Ra1+ {[%clk 00:00:13]} {[%emt 00:00:01]} 31. Nd1 {[%clk 00:00:15]}
Bc2 {[%clk 00:00:08]} {[%emt 00:00:09]} 32. h4 {[%clk 00:00:16]} {[%emt
00:00:02]} Rb1 {[%clk 00:00:08]} {[%emt 00:00:03]} 33. h5 {[%clk 00:00:17]}
{[%emt 00:00:03]} f5 {[%clk 00:00:09]} {[%emt 00:00:01]} 34. Rh4 {[%clk
00:00:18]} {[%emt 00:00:02]} f4 {[%clk 00:00:08]} {[%emt 00:00:04]} 35. Bxc4+
{[%clk 00:00:20]} {[%emt 00:00:01]} Kf8 {[%clk 00:00:09]} {[%emt 00:00:01]} 36.
Be2 {[%clk 00:00:22]} {[%emt 00:00:01]} Ke7 {[%clk 00:00:08]} {[%emt 00:00:04]}
37. Rg4 {[%clk 00:00:23]} {[%emt 00:00:01]} Kf6 {[%clk 00:00:11]} 38. Rh4
{[%clk 00:00:23]} {[%emt 00:00:04]} Bb3 {[%clk 00:00:08]} {[%emt 00:00:06]} 39.
Rh3 {[%clk 00:00:22]} {[%emt 00:00:03]} Ba4 {[%clk 00:00:08]} {[%emt 00:00:03]}
40. Rh4 {[%clk 00:00:24]} {[%emt 00:00:01]} Rc1 {[%clk 00:00:10]} {[%emt
00:00:02]} 41. Rh3 {[%clk 00:00:24]} {[%emt 00:00:03]} Bd7 {[%clk 00:00:11]} 42.
Rh4 {[%clk 00:00:24]} {[%emt 00:00:03]} Bf5 {[%clk 00:00:12]} {[%emt 00:00:02]}
43. Rh1 {[%clk 00:00:23]} {[%emt 00:00:04]} Rb1 {[%clk 00:00:13]} {[%emt
00:00:02]} 44. Rh4 {[%clk 00:00:23]} {[%emt 00:00:03]} Kg5 {[%clk 00:00:15]}
{[%emt 00:00:01]} 45. Rh1 {[%clk 00:00:25]} {[%emt 00:00:01]} e4 {[%clk
00:00:16]} {[%emt 00:00:02]} 46. fxe4 {[%clk 00:00:24]} {[%emt 00:00:05]} Bxe4
{[%clk 00:00:18]} 47. Bf3 {[%clk 00:00:26]} Bd3 {[%clk 00:00:19]} {[%emt
00:00:01]} 48. Be2 {[%clk 00:00:28]} {[%emt 00:00:01]} Bc2 {[%clk 00:00:18]}
{[%emt 00:00:04]} 49. Rh3 {[%clk 00:00:28]} {[%emt 00:00:04]} Bxd1 {[%clk
00:00:13]} {[%emt 00:00:07]} 50. Bxd1 {[%clk 00:00:29]} {[%emt 00:00:02]} Rxb2
{[%clk 00:00:15]} {[%emt 00:00:01]} 51. Bf3 {[%clk 00:00:30]} {[%emt 00:00:02]}
Bf2+ {[%clk 00:00:14]} {[%emt 00:00:04]} 52. Kd1 {[%clk 00:00:30]} {[%emt
00:00:03]} Bg3 {[%clk 00:00:14]} {[%emt 00:00:03]} 53. Kc1 {[%clk 00:00:32]}
{[%emt 00:00:02]} Ra2 {[%clk 00:00:15]} {[%emt 00:00:02]} 54. Kb1 {[%clk
00:00:34]} {[%emt 00:00:01]} Rf2 {[%clk 00:00:15]} {[%emt 00:00:02]} 55. Rh1
{[%clk 00:00:35]} {[%emt 00:00:01]} h6 {[%clk 00:00:11]} {[%emt 00:00:07]} 56.
Kc1 {[%clk 00:00:36]} {[%emt 00:00:03]} Ra2 {[%clk 00:00:10]} {[%emt 00:00:04]}
57. Rd1 {[%clk 00:00:35]} {[%emt 00:00:04]} Bf2 {[%clk 00:00:08]} {[%emt
00:00:04]} 58. Rd7 {[%clk 00:00:28]} {[%emt 00:00:11]} Be3+ {[%clk 00:00:08]}
{[%emt 00:00:03]} 59. Kb1 {[%clk 00:00:24]} {[%emt 00:00:07]} Ra7 {[%clk
00:00:09]} {[%emt 00:00:01]} 60. Rxa7 {[%clk 00:00:24]} {[%emt 00:00:04]} Bxa7
{[%clk 00:00:11]} {[%emt 00:00:01]} 61. Kc2 {[%clk 00:00:26]} Kf6 {[%clk
00:00:12]} {[%emt 00:00:02]} 62. Kd3 {[%emt 00:00:01]} Ke5 {[%emt 00:00:04]}
1/2-1/2

[Event "Chess Stars Match"]
[Site "Teatro Capri, Paterna, Spain"]
[Date "2019.12.15"]
[Round "8.3"]
[White "Macias Pino, Diego"]
[Black "Injac, Teodora"]
[Result "1-0"]
[TimeControl "7m+3s"]
[BlackTitle "WIM"]
[WhiteFideId "24529133"]
[BlackFideId "932400"]
[WhiteElo "2161"]
[BlackElo "2284"]

1. e4 {[%clk 00:06:05]} e6 {[%clk 00:04:04]} {[%emt 00:00:03]} 2. d4 {[%clk
00:06:04]} {[%emt 00:00:03]} d5 {[%clk 00:04:04]} {[%emt 00:00:03]} 3. Nd2
{[%clk 00:06:06]} {[%emt 00:00:01]} Be7 {[%clk 00:04:05]} {[%emt 00:00:01]} 4.
Ngf3 {[%clk 00:06:05]} {[%emt 00:00:04]} Nf6 {[%clk 00:04:08]} 5. Bd3 {[%clk
00:06:05]} {[%emt 00:00:03]} c5 {[%clk 00:04:07]} {[%emt 00:00:03]} 6. c3
{[%clk 00:06:07]} {[%emt 00:00:01]} Nc6 {[%clk 00:04:06]} {[%emt 00:00:04]} 7.
e5 {[%clk 00:06:06]} {[%emt 00:00:03]} Nd7 {[%clk 00:04:08]} {[%emt 00:00:01]}
8. O-O {[%clk 00:06:06]} {[%emt 00:00:04]} g5 {[%clk 00:04:03]} {[%emt
00:00:07]} 9. Bb5 {[%clk 00:05:20]} {[%emt 00:00:49]} g4 {[%clk 00:03:43]}
{[%emt 00:00:24]} 10. Bxc6 {[%clk 00:05:20]} {[%emt 00:00:02]} bxc6 {[%clk
00:03:40]} {[%emt 00:00:06]} 11. Ne1 {[%clk 00:05:22]} {[%emt 00:00:02]} h5
{[%clk 00:03:33]} {[%emt 00:00:10]} 12. f4 {[%emt 00:00:03]} cxd4 {[%clk
00:03:16]} {[%emt 00:00:18]} 13. cxd4 {[%clk 00:05:24]} {[%emt 00:00:02]} Qb6
{[%clk 00:03:17]} {[%emt 00:00:01]} 14. Nb3 {[%clk 00:05:18]} {[%emt 00:00:09]}
a5 {[%clk 00:03:10]} {[%emt 00:00:10]} 15. Be3 {[%clk 00:05:03]} {[%emt
00:00:18]} a4 {[%clk 00:02:36]} {[%emt 00:00:38]} 16. Nc1 {[%clk 00:04:52]}
{[%emt 00:00:14]} c5 {[%clk 00:01:31]} {[%emt 00:01:08]} 17. Nc2 {[%clk
00:03:18]} {[%emt 00:01:37]} Ba6 {[%clk 00:01:25]} {[%emt 00:00:09]} 18. Rf2
{[%clk 00:03:06]} {[%emt 00:00:15]} Qxb2 {[%clk 00:01:06]} {[%emt 00:00:22]} 19.
Nd3 {[%clk 00:03:07]} {[%emt 00:00:01]} Qc3 {[%clk 00:01:03]} {[%emt 00:00:06]}
20. Nce1 {[%clk 00:02:41]} {[%emt 00:00:29]} Qa5 {[%clk 00:00:17]} {[%emt
00:00:49]} 21. f5 {[%clk 00:02:34]} {[%emt 00:00:10]} cxd4 {[%clk 00:00:13]}
{[%emt 00:00:07]} 22. Bxd4 {[%clk 00:02:35]} {[%emt 00:00:02]} Nc5 {[%clk
00:00:09]} {[%emt 00:00:08]} 23. Nxc5 {[%clk 00:02:25]} {[%emt 00:00:13]} Bxc5
{[%clk 00:00:11]} {[%emt 00:00:01]} 24. fxe6 {[%clk 00:02:27]} {[%emt
00:00:01]} fxe6 {[%clk 00:00:09]} {[%emt 00:00:05]} 25. Bxc5 {[%clk 00:02:28]}
{[%emt 00:00:02]} Qxc5 {[%clk 00:00:11]} 26. Rc1 {[%clk 00:02:30]} Qb5 {[%clk
00:00:09]} {[%emt 00:00:05]} 27. Qc2 {[%clk 00:02:29]} {[%emt 00:00:03]} Rc8
{[%clk 00:00:05]} {[%emt 00:00:08]} 28. Qg6+ {[%clk 00:02:30]} {[%emt
00:00:02]} Ke7 {[%clk 00:00:07]} {[%emt 00:00:01]} 29. Qf7+ {[%clk 00:02:18]}
{[%emt 00:00:15]} Kd8 {[%clk 00:00:08]} {[%emt 00:00:02]} 30. Qf6+ {[%clk
00:02:17]} {[%emt 00:00:04]} Kd7 {[%clk 00:00:11]} 31. Qg7+ {[%emt 00:00:08]}
Kd8 {[%clk 00:00:12]} 32. Qxh8+ {[%clk 00:02:13]} {[%emt 00:00:02]} Kd7 {[%clk
00:00:12]} {[%emt 00:00:02]} 33. Rf7# {[%clk 00:02:15]} {[%emt 00:00:02]} 1-0

[Event "Chess Stars Match"]
[Site "Teatro Capri, Paterna, Spain"]
[Date "2019.12.15"]
[Round "8.4"]
[White "Vallejo Pons, Francisco"]
[Black "Randazzo, Adrian"]
[Result "1-0"]
[TimeControl "7m+3s"]
[WhiteTitle "GM"]
[BlackTitle "FM"]
[WhiteFideId "2205530"]
[BlackFideId "114251"]
[WhiteElo "2704"]
[BlackElo "2230"]

1. d4 {[%clk 00:03:04]} d5 {[%clk 00:04:03]} {[%emt 00:00:03]} 2. c4 {[%clk
00:03:06]} {[%emt 00:00:02]} e6 {[%clk 00:04:03]} {[%emt 00:00:04]} 3. Nc3
{[%clk 00:03:06]} {[%emt 00:00:03]} a6 {[%clk 00:04:03]} {[%emt 00:00:02]} 4.
cxd5 {[%clk 00:02:55]} {[%emt 00:00:13]} exd5 {[%clk 00:04:04]} {[%emt
00:00:03]} 5. Qb3 {[%clk 00:02:55]} {[%emt 00:00:03]} Nf6 {[%clk 00:03:51]}
{[%emt 00:00:16]} 6. Bg5 {[%clk 00:02:55]} {[%emt 00:00:03]} c6 {[%clk
00:03:46]} {[%emt 00:00:08]} 7. e4 {[%clk 00:02:38]} {[%emt 00:00:20]} dxe4
{[%clk 00:03:41]} {[%emt 00:00:08]} 8. Bc4 {[%clk 00:02:34]} {[%emt 00:00:08]}
Qe7 {[%clk 00:03:14]} {[%emt 00:00:31]} 9. a4 {[%clk 00:02:25]} {[%emt
00:00:11]} h6 {[%clk 00:02:59]} {[%emt 00:00:18]} 10. Bh4 {[%clk 00:01:30]}
{[%emt 00:00:58]} g5 {[%clk 00:02:45]} {[%emt 00:00:17]} 11. Bg3 {[%clk
00:01:32]} {[%emt 00:00:01]} Bg7 {[%clk 00:02:39]} {[%emt 00:00:09]} 12. h4
{[%clk 00:01:32]} {[%emt 00:00:03]} e3 {[%clk 00:02:20]} {[%emt 00:00:22]} 13.
fxe3 {[%clk 00:00:39]} {[%emt 00:00:56]} Qxe3+ {[%clk 00:02:18]} {[%emt
00:00:05]} 14. Nge2 {[%clk 00:00:41]} {[%emt 00:00:01]} O-O {[%clk 00:01:55]}
{[%emt 00:00:26]} 15. hxg5 {[%clk 00:00:42]} {[%emt 00:00:02]} hxg5 {[%clk
00:01:55]} {[%emt 00:00:03]} 16. Nd5 {[%clk 00:00:11]} {[%emt 00:00:34]} Nxd5
{[%clk 00:01:41]} {[%emt 00:00:16]} 17. Bxd5 {[%clk 00:00:13]} {[%emt
00:00:02]} Qxb3 {[%clk 00:01:38]} {[%emt 00:00:06]} 18. Bxb3 {[%clk 00:00:14]}
{[%emt 00:00:01]} Bg4 {[%clk 00:01:16]} {[%emt 00:00:24]} 19. Kd2 {[%clk
00:00:11]} {[%emt 00:00:07]} Nd7 {[%clk 00:01:08]} {[%emt 00:00:11]} 20. Rhf1
{[%clk 00:00:09]} {[%emt 00:00:04]} Nf6 {[%clk 00:01:02]} {[%emt 00:00:09]} 21.
Nc3 {[%clk 00:00:09]} {[%emt 00:00:03]} Rad8 {[%clk 00:00:55]} {[%emt
00:00:10]} 22. Be5 {[%clk 00:00:06]} {[%emt 00:00:06]} Nd7 {[%clk 00:00:55]}
{[%emt 00:00:04]} 23. Bd6 {[%clk 00:00:05]} {[%emt 00:00:04]} Bxd4 {[%clk
00:00:24]} {[%emt 00:00:34]} 24. Bxf8 {[%clk 00:00:06]} {[%emt 00:00:02]} Rxf8
{[%clk 00:00:24]} {[%emt 00:00:02]} 25. Rae1 {[%clk 00:00:07]} {[%emt
00:00:02]} Nc5 {[%clk 00:00:24]} {[%emt 00:00:04]} 26. Bc2 {[%clk 00:00:08]}
{[%emt 00:00:02]} Bg7 {[%clk 00:00:17]} {[%emt 00:00:10]} 27. Bf5 {[%clk
00:00:07]} {[%emt 00:00:03]} Bh5 {[%clk 00:00:16]} {[%emt 00:00:04]} 28. Kc2
{[%clk 00:00:09]} {[%emt 00:00:02]} b5 {[%clk 00:00:12]} {[%emt 00:00:07]} 29.
axb5 {[%clk 00:00:10]} {[%emt 00:00:02]} cxb5 {[%clk 00:00:14]} {[%emt
00:00:01]} 30. g4 {[%clk 00:00:12]} {[%emt 00:00:01]} Bg6 {[%clk 00:00:14]}
{[%emt 00:00:03]} 31. Bxg6 {[%clk 00:00:13]} {[%emt 00:00:01]} fxg6 {[%clk
00:00:16]} 32. Rxf8+ {[%clk 00:00:14]} {[%emt 00:00:02]} Kxf8 {[%clk 00:00:16]}
{[%emt 00:00:04]} 33. Nd5 {[%clk 00:00:14]} {[%emt 00:00:03]} Na4 {[%clk
00:00:15]} {[%emt 00:00:04]} 34. b3 {[%clk 00:00:14]} {[%emt 00:00:03]} Nc5
{[%clk 00:00:15]} {[%emt 00:00:03]} 35. b4 {[%clk 00:00:14]} {[%emt 00:00:04]}
Nd7 {[%clk 00:00:10]} {[%emt 00:00:08]} 36. Nc7 {[%clk 00:00:14]} {[%emt
00:00:03]} Ne5 {[%clk 00:00:11]} {[%emt 00:00:01]} 37. Ne6+ {[%clk 00:00:15]}
{[%emt 00:00:03]} 1-0

[Event "Chess Stars Match"]
[Site "Teatro Capri, Paterna, Spain"]
[Date "2019.12.15"]
[Round "8.5"]
[White "Arizmendi Martinez, Julen Luis"]
[Black "Povshednyi, Ivan"]
[Result "1-0"]
[TimeControl "7m+3s"]
[WhiteTitle "GM"]
[WhiteFideId "2205092"]
[BlackFideId "14190907"]
[WhiteElo "2511"]
[BlackElo "1795"]

1. e4 {[%clk 00:03:04]} {[%emt 00:00:02]} c5 {[%clk 00:06:06]} 2. Nf3 {[%clk
00:03:06]} e6 {[%clk 00:06:08]} 3. d4 {[%clk 00:03:06]} {[%emt 00:00:02]} cxd4
{[%emt 00:00:03]} 4. Nxd4 Nf6 {[%clk 00:06:10]} {[%emt 00:00:01]} 5. Nc3 {[%clk
00:03:11]} d6 {[%clk 00:06:11]} {[%emt 00:00:03]} 6. Be2 {[%clk 00:03:11]}
{[%emt 00:00:03]} a6 {[%clk 00:06:12]} {[%emt 00:00:02]} 7. O-O {[%clk
00:03:12]} {[%emt 00:00:02]} Be7 {[%clk 00:06:14]} 8. f4 {[%clk 00:03:03]}
{[%emt 00:00:12]} Nbd7 {[%clk 00:06:13]} {[%emt 00:00:04]} 9. Bf3 {[%clk
00:02:57]} {[%emt 00:00:09]} O-O {[%clk 00:06:13]} {[%emt 00:00:03]} 10. Be3
{[%clk 00:02:52]} {[%emt 00:00:08]} Qc7 {[%clk 00:06:14]} {[%emt 00:00:03]} 11.
a4 {[%clk 00:02:48]} {[%emt 00:00:07]} Rb8 {[%clk 00:06:04]} {[%emt 00:00:13]}
12. Kh1 {[%clk 00:02:41]} {[%emt 00:00:10]} Rd8 {[%clk 00:05:43]} {[%emt
00:00:23]} 13. Qe2 {[%clk 00:02:36]} {[%emt 00:00:08]} Bf8 {[%clk 00:05:41]}
{[%emt 00:00:05]} 14. Rad1 {[%clk 00:02:29]} {[%emt 00:00:10]} e5 {[%clk
00:05:29]} {[%emt 00:00:15]} 15. Nf5 {[%clk 00:02:15]} {[%emt 00:00:16]} g6
{[%clk 00:05:11]} {[%emt 00:00:21]} 16. Ng3 {[%clk 00:02:12]} {[%emt 00:00:05]}
exf4 {[%clk 00:05:03]} {[%emt 00:00:11]} 17. Bxf4 {[%clk 00:02:14]} Ne5 {[%clk
00:05:05]} 18. Bg5 {[%clk 00:02:16]} Nfd7 {[%clk 00:04:25]} {[%emt 00:00:44]}
19. Nd5 {[%clk 00:02:14]} {[%emt 00:00:05]} Qa5 {[%clk 00:04:26]} {[%emt
00:00:01]} 20. b4 {[%clk 00:02:11]} {[%emt 00:00:06]} Qxa4 {[%clk 00:04:28]}
{[%emt 00:00:01]} 21. Bxd8 {[%clk 00:02:12]} {[%emt 00:00:02]} b6 {[%clk
00:04:13]} {[%emt 00:00:19]} 22. Be7 {[%clk 00:02:02]} {[%emt 00:00:12]} Qc6
{[%clk 00:04:09]} {[%emt 00:00:07]} 23. Bxf8 {[%clk 00:01:56]} {[%emt
00:00:09]} Kxf8 {[%clk 00:04:11]} {[%emt 00:00:01]} 24. Qd2 {[%clk 00:01:54]}
{[%emt 00:00:05]} Kg7 {[%clk 00:04:11]} {[%emt 00:00:03]} 25. Ne7 {[%clk
00:01:52]} {[%emt 00:00:06]} Qc7 {[%clk 00:04:08]} {[%emt 00:00:05]} 26. Qxd6
{[%clk 00:01:53]} {[%emt 00:00:03]} Qxd6 {[%clk 00:04:04]} {[%emt 00:00:07]} 27.
Rxd6 {[%clk 00:01:54]} {[%emt 00:00:01]} Nxf3 {[%clk 00:04:05]} {[%emt
00:00:03]} 28. gxf3 {[%clk 00:01:53]} {[%emt 00:00:05]} Ne5 {[%clk 00:03:56]}
{[%emt 00:00:12]} 29. Rd8 {[%clk 00:01:53]} {[%emt 00:00:03]} Rb7 {[%clk
00:03:28]} {[%emt 00:00:31]} 30. Nxc8 {[%clk 00:01:53]} {[%emt 00:00:03]} Rc7
{[%clk 00:03:30]} {[%emt 00:00:01]} 31. Nxb6 {[%clk 00:01:49]} {[%emt
00:00:07]} Rxc2 {[%clk 00:03:31]} {[%emt 00:00:02]} 32. Nd5 {[%clk 00:01:47]}
{[%emt 00:00:05]} Nd3 {[%clk 00:03:20]} {[%emt 00:00:13]} 33. Ne3 {[%clk
00:01:38]} {[%emt 00:00:13]} Rd2 {[%clk 00:03:20]} {[%emt 00:00:02]} 34. Kg1
{[%clk 00:01:39]} {[%emt 00:00:03]} Kf6 {[%clk 00:03:17]} {[%emt 00:00:05]} 35.
e5+ {[%clk 00:01:26]} {[%emt 00:00:17]} Ke7 {[%clk 00:03:17]} {[%emt 00:00:03]}
36. Rd4 {[%clk 00:01:23]} {[%emt 00:00:06]} h5 {[%clk 00:03:11]} {[%emt
00:00:09]} 37. Ne4 {[%clk 00:01:24]} {[%emt 00:00:03]} Ra2 {[%clk 00:03:09]}
{[%emt 00:00:06]} 38. Rxd3 {[%clk 00:01:24]} {[%emt 00:00:03]} 1-0